Departmental family,Entity,Date Paid,Expense type,Expense Area,Supplier,Transaction Number,Amount,Description,Supplier Type,Expenditure Type
UK Statistics Authority,Office for National Statistics,01-Jun-18,Surveys,Public Policy Analysis,Kantar Public,88294,"507,344.53", Information Management Services,SME,Programme
UK Statistics Authority,Office for National Statistics,01-Jun-18,IT Contractual Services,Digital Services and Technology,E Synergy Solutions,88295,"37,800.00", Information Management Services ,SME,Programme
UK Statistics Authority,Office for National Statistics,01-Jun-18,IT Contractual Services,Digital Services and Technology,E Synergy Solutions,88295,"39,024.00", Information Management Services ,SME,Programme
UK Statistics Authority,Office for National Statistics,01-Jun-18,Incentive Payments,Public Population and Policy Operations,Park Retail Ltd,88296,"20,922.64", Social Surveys Incentive Vouchers,Large,Programme
UK Statistics Authority,Office for National Statistics,01-Jun-18,Incentive Payments,Public Population and Policy Operations,Park Retail Ltd,88296,"34,507.69", Social Surveys Incentive Vouchers,Large,Programme
UK Statistics Authority,Office for National Statistics,01-Jun-18,Incentive Payments,Public Population and Policy Operations,Park Retail Ltd,88296,"1,102.29", Social Surveys Incentive Vouchers,Large,Programme
UK Statistics Authority,Office for National Statistics,01-Jun-18,Incentive Payments,Public Population and Policy Operations,Park Retail Ltd,88296,"9,471.63", Social Surveys Incentive Vouchers,Large,Programme
UK Statistics Authority,Office for National Statistics,01-Jun-18,ICT Outsourcing and Maintenance/Support,Digital Services and Technology,SCC,88301,"346,482.86", Information Management Services,Large,Programme
UK Statistics Authority,Office for National Statistics,01-Jun-18,Telecommunications,Digital Services and Technology,BT Global Services,88303,"49,105.91", Information Management Services,Large,Programme
UK Statistics Authority,Office for National Statistics,01-Jun-18,Travel and Subsistence,"Finance, Audit and Business Development",Redfern Travel,88307,"43,318.72", Travel and Accommodation Booking Service ,SME,Programme
UK Statistics Authority,Office for National Statistics,01-Jun-18,Contractors,Digital Services and Technology,LA International,88314,"6,151.44", Information Management Services,SME,Programme
UK Statistics Authority,Office for National Statistics,01-Jun-18,Contractors,Digital Services and Technology,LA International,88314,"6,023.30", Information Management Services,SME,Programme
UK Statistics Authority,Office for National Statistics,01-Jun-18,Contractors,National Accounts and Economic Statistics,LA International,88314,"10,252.32", Information Management Services,SME,Programme
UK Statistics Authority,Office for National Statistics,01-Jun-18,Contractors,Public Population and Policy Operations,LA International,88314,"17,280.00", Information Management Services,SME,Programme
UK Statistics Authority,Office for National Statistics,01-Jun-18,ICT Software,Digital Services and Technology,Insight Direct,88317,"30,591.60", Statistical Services,Large,Programme
UK Statistics Authority,Office for National Statistics,01-Jun-18,ICT Software,Digital Services and Technology,Computacenter (UK) Limited,88319,"54,602.11", Information Management services,Large,Programme
UK Statistics Authority,Office for National Statistics,01-Jun-18,ICT Software,Digital Services and Technology,Computacenter (UK) Limited,88319,"77,647.63", Annual Subscription IBM SPSS Statistics Software,Large,Programme
UK Statistics Authority,Office for National Statistics,01-Jun-18,IT Management and Change,Digital Services and Technology,Computacenter (UK) Limited,88319,"14,650.64", Information Management services,Large,Programme
UK Statistics Authority,Office for National Statistics,01-Jun-18,Software Pool 4Yr,Digital Services and Technology,Computacenter (UK) Limited,88319,"101,114.95", Information Management services,Large,Programme
UK Statistics Authority,Office for National Statistics,01-Jun-18,Contractors,Digital Services and Technology,Parity Resources Limited,88320,"8,522.64", Information Management Services,Large,Programme
UK Statistics Authority,Office for National Statistics,01-Jun-18,Contractors,Digital Services and Technology,Parity Resources Limited,88320,228.96, Information Management Services,Large,Programme
UK Statistics Authority,Office for National Statistics,01-Jun-18,Contractors,Digital Services and Technology,Parity Resources Limited,88320,"19,640.52", Information Management Services,Large,Programme
UK Statistics Authority,Office for National Statistics,01-Jun-18,Contractors,Economic Statistics Transformation,Parity Resources Limited,88320,"6,877.24", Information Management Services,Large,Programme
UK Statistics Authority,Office for National Statistics,01-Jun-18,Short-Term Contract and Agency Staff,People and Business Services,Parity Resources Limited,88320,"2,660.92", Information Management Services,Large,Programme
UK Statistics Authority,Office for National Statistics,01-Jun-18,Short-Term Contract and Agency Staff,People and Business Services,Parity Resources Limited,88320,"2,733.23", Information Management Services,Large,Programme
UK Statistics Authority,Office for National Statistics,01-Jun-18,Short-Term Contract and Agency Staff,Policy and Communication,Parity Resources Limited,88320,126.84, Information Management Services,Large,Programme
UK Statistics Authority,Office for National Statistics,01-Jun-18,Capital Major Works > 25K,People and Business Services,Hawkings Cladding Ltd,88324,"100,561.04", Newport Cladding ,SME,Programme
UK Statistics Authority,Office for National Statistics,01-Jun-18,Major Works Over 25K,People and Business Services,Hawkings Cladding Ltd,88324,"17,746.07", Newport Cladding ,SME,Programme
UK Statistics Authority,Office for National Statistics,04-Jun-18,Short-Term Contract and Agency Staff,Public Population and Policy Operations,NISRA,88949,"66,600.00", Belfast International�Airport Service Charges For Interviewer Presence ,Large,Programme
UK Statistics Authority,Office for National Statistics,04-Jun-18,ICT Outsourcing and Maintenance/Support,Digital Services and Technology,Computacenter (UK) Limited,88952,"701,597.98", Information Management Services,Large,Programme
UK Statistics Authority,Office for National Statistics,05-Jun-18,Surveys,National Accounts and Economic Statistics,Kantar Public,88963,"188,328.90", Information Management Services,SME,Programme
UK Statistics Authority,Office for National Statistics,05-Jun-18,Telecommunications,Digital Services and Technology,BT Global Services,88971,"42,703.20", Information Management Services,Large,Programme
UK Statistics Authority,Office for National Statistics,05-Jun-18,Surveys,Public Population and Policy Operations,Ipsos MORI,88974,"1,434.00", Information Management Services,Large,Programme
UK Statistics Authority,Office for National Statistics,05-Jun-18,Surveys,Public Population and Policy Transformation,Ipsos MORI,88974,"49,992.00", Information Management Services,Large,Programme
UK Statistics Authority,Office for National Statistics,05-Jun-18,Travel and Subsistence,"Finance, Audit and Business Development",Calder World of Travel,88975,"44,677.69", Training and Meeting Venues,SME,Programme
UK Statistics Authority,Office for National Statistics,05-Jun-18,Training and Development,National Accounts and Economic Statistics,Korn Ferry Hay Group,88978,684, Senior Civil Service Training,SME,Programme
UK Statistics Authority,Office for National Statistics,05-Jun-18,Training and Development,People and Business Services,Korn Ferry Hay Group,88978,"41,647.20", Senior Civil Service Training,SME,Programme
UK Statistics Authority,Office for National Statistics,05-Jun-18,IT Contractual Services,Digital Services and Technology,QA Ltd,88984,"61,200.00", Information Management Services,Large,Programme
UK Statistics Authority,Office for National Statistics,05-Jun-18,Capital Major Works > 25K,People and Business Services,Paramount Office Interiors Ltd,88985,"87,304.26", Major Works Newport,SME,Programme
UK Statistics Authority,Office for National Statistics,05-Jun-18,Major Works Over 25K,People and Business Services,Paramount Office Interiors Ltd,88985,"23,015.35", Major Works Newport,SME,Programme
UK Statistics Authority,Office for National Statistics,05-Jun-18,Consultancy,"Finance, Audit and Business Development",Certeco Ltd,88992,"142,800.00", Information Management services,Large,Programme
UK Statistics Authority,Office for National Statistics,06-Jun-18,Postage,Public Population and Policy Operations,FP Direct ,89382,"80,000.00", Franking Machine Standing Balance,Large,Programme
UK Statistics Authority,Office for National Statistics,06-Jun-18,ICT Outsourcing and Maintenance/Support,Digital Services and Technology,Crown Hosting Data Centres Limited,89393,"1,387.39", Cloud Services,SME,Programme
UK Statistics Authority,Office for National Statistics,06-Jun-18,ICT Outsourcing and Maintenance/Support,Digital Services and Technology,Crown Hosting Data Centres Limited,89393,"30,902.55", Cloud Services,SME,Programme
UK Statistics Authority,Office for National Statistics,06-Jun-18,Travel and Subsistence,"Finance, Audit and Business Development",Redfern Travel,89403,"40,273.29", Travel and Accommodation Booking Service ,SME,Programme
UK Statistics Authority,Office for National Statistics,06-Jun-18,Capital Major Works > 25K,People and Business Services,Paramount Office Interiors Ltd,89413,"58,627.49", Major works Titchfield,SME,Programme
UK Statistics Authority,Office for National Statistics,06-Jun-18,Major Works Over 25K,People and Business Services,Paramount Office Interiors Ltd,89413,"152,397.82", Major Works London,SME,Programme
UK Statistics Authority,Office for National Statistics,06-Jun-18,Major Works Over 25K,People and Business Services,Paramount Office Interiors Ltd,89413,"70,316.34", Major Works Newport,SME,Programme
UK Statistics Authority,Office for National Statistics,06-Jun-18,Major Works Over 25K,People and Business Services,Paramount Office Interiors Ltd,89413,"80,961.78", Major works Titchfield,SME,Programme
UK Statistics Authority,Office for National Statistics,06-Jun-18,Major Works Over 25K,People and Business Services,Paramount Office Interiors Ltd,89413,"82,587.54", Major works Titchfield,SME,Programme
UK Statistics Authority,Office for National Statistics,06-Jun-18,ICT Outsourcing and Maintenance/Support,Digital Services and Technology,Insight Direct,89414,"40,285.70", Statistical Services,Large,Programme
UK Statistics Authority,Office for National Statistics,06-Jun-18,ICT Outsourcing and Maintenance/Support,Digital Services and Technology,Insight Direct,89414,"4,248.00", Statistical Services,Large,Programme
UK Statistics Authority,Office for National Statistics,07-Jun-18,IT Purchase > 2K,Data Science Campus,Vinci Construction UK Limited,89430,"56,918.45", Facility Management Services,Large,Programme
UK Statistics Authority,Office for National Statistics,07-Jun-18,IT Management and Change,Digital Services and Technology,SCC,89436,736.22, Information Management Services,Large,Programme
UK Statistics Authority,Office for National Statistics,07-Jun-18,IT Management and Change,Digital Services and Technology,SCC,89436,"54,529.42", Information Management Services,Large,Programme
UK Statistics Authority,Office for National Statistics,07-Jun-18,Contractors,Digital Services and Technology,LA International,89445,"9,867.82", Information Management Services,SME,Programme
UK Statistics Authority,Office for National Statistics,07-Jun-18,Contractors,Digital Services and Technology,LA International,89445,"14,715.12", Information Management Services,SME,Programme
UK Statistics Authority,Office for National Statistics,07-Jun-18,Contractors,"Methods, Data and Research",LA International,89445,"3,748.50", Information Management Services,SME,Programme
UK Statistics Authority,Office for National Statistics,07-Jun-18,IT Contractual Services,Digital Services and Technology,QA Ltd,89448,"30,132.00", Information Management Services,Large,Programme
UK Statistics Authority,Office for National Statistics,07-Jun-18,ICT Outsourcing and Maintenance/Support,Digital Services and Technology,Computacenter (UK) Limited,89449,"33,164.30", Information Management Services,Large,Programme
UK Statistics Authority,Office for National Statistics,07-Jun-18,Contractors,Digital Services and Technology,Parity Resources Limited,89451,"7,200.00", Information Management Services,Large,Programme
UK Statistics Authority,Office for National Statistics,07-Jun-18,Contractors,Economic Statistics Transformation,Parity Resources Limited,89451,"10,950.84", Information Management Services,Large,Programme
UK Statistics Authority,Office for National Statistics,07-Jun-18,Contractors,Economic Statistics Transformation,Parity Resources Limited,89451,"9,740.16", Information Management Services,Large,Programme
UK Statistics Authority,Office for National Statistics,07-Jun-18,Contractors,People and Business Services,Parity Resources Limited,89451,"6,343.92", Information Management Services,Large,Programme
UK Statistics Authority,Office for National Statistics,07-Jun-18,Contractors,Public Population and Policy Operations,Parity Resources Limited,89451,"11,520.00", Information Management Services,Large,Programme
UK Statistics Authority,Office for National Statistics,07-Jun-18,IT Contractual Services,Digital Services and Technology,Parity Resources Limited,89451,"11,278.08", Information Management Services,Large,Programme
UK Statistics Authority,Office for National Statistics,07-Jun-18,Short-Term Contract and Agency Staff,Public Population and Policy Operations,Parity Resources Limited,89451,"5,368.22", Information Management Services,Large,Programme
UK Statistics Authority,Office for National Statistics,07-Jun-18,Short-Term Contract and Agency Staff,Public Population and Policy Operations,Parity Resources Limited,89451,"4,021.40", Information Management Services,Large,Programme
UK Statistics Authority,Office for National Statistics,07-Jun-18,Short-Term Contract and Agency Staff,Public Population and Policy Operations,Parity Resources Limited,89451,"2,063.23", Information Management Services,Large,Programme
UK Statistics Authority,Office for National Statistics,08-Jun-18,IT Contractual Services,Digital Services and Technology,QA Ltd,89463,"27,300.00", Information Management Services,Large,Programme
UK Statistics Authority,Office for National Statistics,08-Jun-18,Childcare Services,"Finance, Audit and Business Development",Computershare Voucher Services,89464,"43,936.35", Childcare Vouchers ,Large,Programme
UK Statistics Authority,Office for National Statistics,08-Jun-18,Contractors,Digital Services and Technology,Parity Resources Limited,89465,"7,609.50", Information Management Services,Large,Programme
UK Statistics Authority,Office for National Statistics,08-Jun-18,Contractors,Digital Services and Technology,Parity Resources Limited,89465,"10,547.90", Information Management Services,Large,Programme
UK Statistics Authority,Office for National Statistics,08-Jun-18,IT Contractual Services,Digital Services and Technology,Parity Resources Limited,89465,"10,348.92", Information Management Services,Large,Programme
UK Statistics Authority,Office for National Statistics,08-Jun-18,Short-Term Contract and Agency Staff,People and Business Services,Parity Resources Limited,89465,"3,553.20", Information Management Services,Large,Programme
UK Statistics Authority,Office for National Statistics,08-Jun-18,Short-Term Contract and Agency Staff,Public Population and Policy Operations,Parity Resources Limited,89465,"5,081.66", Information Management Services,Large,Programme
UK Statistics Authority,Office for National Statistics,11-Jun-18,Facilities Management Contract Payments,"Finance, Audit and Business Development",Vinci Construction UK Limited,89749,"59,193.92", Facility Management Services,Large,Programme
UK Statistics Authority,Office for National Statistics,11-Jun-18,Non-IT Contractual Payments,"Methods, Data and Research",University of Southampton,89752,"32,397.60", Statistical services,SME,Programme
UK Statistics Authority,Office for National Statistics,11-Jun-18,Consultancy,Public Population and Policy Transformation,Deloitte,89755,"173,376.00", Information Management Services,Large,Programme
UK Statistics Authority,Office for National Statistics,11-Jun-18,IT Contractual Services,Digital Services and Technology,Armakuni Ltd,89765,"89,670.00", Information Management Services,SME,Programme
UK Statistics Authority,Office for National Statistics,11-Jun-18,Consultancy,"Finance, Audit and Business Development",Certeco Ltd,89767,"142,800.00", Information Management Services,Large,Programme
UK Statistics Authority,Office for National Statistics,11-Jun-18,Consultancy,Public Population and Policy Operations,Certeco Ltd,89767,"21,060.00", Information Management Services,Large,Programme
UK Statistics Authority,Office for National Statistics,11-Jun-18,ICT Outsourcing and Maintenance/Support,Digital Services and Technology,Amazon Web Services Inc,30000901,"53,446.08", Web Services,Large,Programme
UK Statistics Authority,Office for National Statistics,11-Jun-18,Compensation Payment,Policy Secretariat,Government Legal Services,30000908,"530,000.00", Government Legal Services,Large,Programme
UK Statistics Authority,Office for National Statistics,12-Jun-18,Surveys,Public Policy Analysis,Kantar Public,90116,"83,244.00", Information Management Services,SME,Programme
UK Statistics Authority,Office for National Statistics,12-Jun-18,Incentive Payments,Public Population and Policy Operations,Park Retail Ltd,90119,"8,869.29", Social Surveys Incentive Vouchers,Large,Programme
UK Statistics Authority,Office for National Statistics,12-Jun-18,Incentive Payments,Public Population and Policy Operations,Park Retail Ltd,90119,"33,398.39", Social Surveys Incentive Vouchers,Large,Programme
UK Statistics Authority,Office for National Statistics,12-Jun-18,Incentive Payments,Public Population and Policy Operations,Park Retail Ltd,90119,"11,085.89", Social Surveys Incentive Vouchers,Large,Programme
UK Statistics Authority,Office for National Statistics,12-Jun-18,Incentive Payments,Public Population and Policy Operations,Park Retail Ltd,90119,"4,007.48", Social Surveys Incentive Vouchers,Large,Programme
UK Statistics Authority,Office for National Statistics,12-Jun-18,Incentive Payments,Public Population and Policy Operations,Park Retail Ltd,90119,"6,580.70", Social Surveys Incentive Vouchers,Large,Programme
UK Statistics Authority,Office for National Statistics,12-Jun-18,Contractors,Digital Services and Technology,Certes Computing Ltd,90125,"9,005.57", Information Management Services,SME,Programme
UK Statistics Authority,Office for National Statistics,12-Jun-18,Contractors,Digital Services and Technology,Certes Computing Ltd,90125,"11,003.28", Information Management Services,SME,Programme
UK Statistics Authority,Office for National Statistics,12-Jun-18,Contractors,Digital Services and Technology,Certes Computing Ltd,90125,"20,179.82", Information Management Services,SME,Programme
UK Statistics Authority,Office for National Statistics,12-Jun-18,IT Contractual Services,Digital Services and Technology,QA Ltd,90128,"58,980.00", Information Management Services,Large,Programme
UK Statistics Authority,Office for National Statistics,12-Jun-18,Procurement Card,"Finance, Audit and Business Development",Royal Bank of Scotland,90130,"74,665.69", Multiple Procurement Card Purchases  ,Large,Programme
UK Statistics Authority,Office for National Statistics,12-Jun-18,Stationery,"Finance, Audit and Business Development",Royal Bank of Scotland,90130,"8,847.01", Multiple Procurement Card Stationery Purchases  ,Large,Programme
UK Statistics Authority,Office for National Statistics,12-Jun-18,Contractors,Public Population and Policy Transformation,Parity Resources Limited,90131,"13,452.00", Information Management Services,Large,Programme
UK Statistics Authority,Office for National Statistics,12-Jun-18,Contractors,Public Population and Policy Transformation,Parity Resources Limited,90131,"12,495.60", Information Management Services,Large,Programme
UK Statistics Authority,Office for National Statistics,12-Jun-18,Contractors,Public Population and Policy Transformation,Parity Resources Limited,90131,"19,288.08", Information Management Services,Large,Programme
UK Statistics Authority,Office for National Statistics,12-Jun-18,Contractors,Public Population and Policy Transformation,Parity Resources Limited,90131,640.8, Information Management Services,Large,Programme
UK Statistics Authority,Office for National Statistics,12-Jun-18,IT Contractual Services,Digital Services and Technology,Parity Resources Limited,90131,"10,573.20", Information Management Services,Large,Programme
UK Statistics Authority,Office for National Statistics,12-Jun-18,IT Contractual Services,Digital Services and Technology,Cloudwick Technologies UK,90136,"38,078.62", Cloud Services,SME,Programme
UK Statistics Authority,Office for National Statistics,13-Jun-18,Accommodation and Building Services,"Finance, Audit and Business Development",Vinci Construction UK Limited,90143,"313,426.84", Facilities Management Fee,Large,Programme
UK Statistics Authority,Office for National Statistics,13-Jun-18,Telecommunications,Digital Services and Technology,BT Global Services,90147,"71,737.91", Information Management Services,Large,Programme
UK Statistics Authority,Office for National Statistics,13-Jun-18,Telecommunications,Public Population and Policy Operations,BT Global Services,90147,"7,627.44", Information Management Services,Large,Programme
UK Statistics Authority,Office for National Statistics,13-Jun-18,Travel and Subsistence,"Finance, Audit and Business Development",Redfern Travel,90149,"64,071.41", Travel and Accommodation Booking Service ,SME,Programme
UK Statistics Authority,Office for National Statistics,13-Jun-18,Postage,Public Population and Policy Operations,UK Mail,90150,"30,343.92", Outgoing Post,Large,Programme
UK Statistics Authority,Office for National Statistics,13-Jun-18,IT Contractual Services,Digital Services and Technology,Methods Digital Ltd,90153,"11,700.00", Information Management Services,Large,Programme
UK Statistics Authority,Office for National Statistics,13-Jun-18,IT Contractual Services,Digital Services and Technology,Methods Digital Ltd,90153,"36,450.00", Information Management Services,Large,Programme
UK Statistics Authority,Office for National Statistics,13-Jun-18,IT Contractual Services,Digital Services and Technology,Methods Digital Ltd,90153,"84,960.00", Information Management Services,Large,Programme
UK Statistics Authority,Office for National Statistics,13-Jun-18,IT Contractual Services,Digital Services and Technology,Methods Digital Ltd,90153,"18,000.00", Information Management Services,Large,Programme
UK Statistics Authority,Office for National Statistics,13-Jun-18,IT Contractual Services,Digital Services and Technology,Methods Digital Ltd,90153,"48,780.00", Information Management Services,Large,Programme
UK Statistics Authority,Office for National Statistics,13-Jun-18,IT Contractual Services,Digital Services and Technology,Methods Digital Ltd,90153,"18,900.00", Information Management Services,Large,Programme
UK Statistics Authority,Office for National Statistics,13-Jun-18,IT Contractual Services,Digital Services and Technology,QA Ltd,90157,"417,491.76", Information Management Services,Large,Programme
UK Statistics Authority,Office for National Statistics,14-Jun-18,Performance Reward Scheme,ONS Corporate Funds,Park Retail Ltd,90438,"43,200.00", Performance and Reward Vouchers,Large,Programme
UK Statistics Authority,Office for National Statistics,14-Jun-18,Consultancy,Public Population and Policy Operations,Deloitte,90442,"912,684.78", Information Management Services,Large,Programme
UK Statistics Authority,Office for National Statistics,14-Jun-18,Contractors,Digital Services and Technology,Parity Resources Limited,90444,"15,219.00", Information Management Services,Large,Programme
UK Statistics Authority,Office for National Statistics,14-Jun-18,Contractors,Policy and Communication,Parity Resources Limited,90444,"11,767.86", Information Management Services,Large,Programme
UK Statistics Authority,Office for National Statistics,14-Jun-18,Short-Term Contract and Agency Staff,Public Population and Policy Operations,Parity Resources Limited,90444,451.43, Information Management Services,Large,Programme
UK Statistics Authority,Office for National Statistics,14-Jun-18,Electricity,People and Business Services,EDF Energy,30000914,"28,040.01", Electricity Charges Titchfield,Large,Programme
UK Statistics Authority,Office for National Statistics,15-Jun-18,Postage,"Finance, Audit and Business Development",Pitney Bowes Ltd,90717,"26,371.50", Franking Machine Standing Balance,Large,Programme
UK Statistics Authority,Office for National Statistics,18-Jun-18,Surveys,Public Policy Analysis,Kantar Public,90731,"438,749.80", Information Management Services,SME,Programme
UK Statistics Authority,Office for National Statistics,19-Jun-18,ICT Outsourcing and Maintenance/Support,Digital Services and Technology,Crown Hosting Data Centres Limited,91003,"40,440.36", Cloud Services,SME,Programme
UK Statistics Authority,Office for National Statistics,19-Jun-18,ICT Outsourcing and Maintenance/Support,Digital Services and Technology,Crown Hosting Data Centres Limited,91003,"5,893.85", Cloud Services,SME,Programme
UK Statistics Authority,Office for National Statistics,19-Jun-18,IT Contractual Services,Digital Services and Technology,Methods Digital Ltd,91012,"58,500.00", Information Management Services,Large,Programme
UK Statistics Authority,Office for National Statistics,19-Jun-18,Contractors,Digital Services and Technology,LA International,91013,"26,869.44", Information Management Services,SME,Programme
UK Statistics Authority,Office for National Statistics,19-Jun-18,Contractors,People and Business Services,LA International,91013,468.48, Information Management Services,SME,Programme
UK Statistics Authority,Office for National Statistics,19-Jun-18,Consultancy,Public Population and Policy Operations,Deloitte,91015,"900,684.78", Information Management Services,Large,Programme
UK Statistics Authority,Office for National Statistics,19-Jun-18,Electricity,People and Business Services,EDF Energy,30000924,"27,280.40", Electricity Charges Titchfield,Large,Programme
UK Statistics Authority,Office for National Statistics,20-Jun-18,Surveys,National Accounts and Economic Statistics,IFF Research,91022,"40,848.00", Statisitical Services,Large,Programme
UK Statistics Authority,Office for National Statistics,20-Jun-18,Travel and Subsistence,"Finance, Audit and Business Development",Redfern Travel,91028,"57,164.63", Travel and Accommodation Booking Service ,SME,Programme
UK Statistics Authority,Office for National Statistics,20-Jun-18,Rent Payable,People and Business Services,Eaton Aerospace Limited,91031,"26,599.20", Titchfield Rent,Large,Programme
UK Statistics Authority,Office for National Statistics,20-Jun-18,Contractors,"Finance, Audit and Business Development",Certeco Ltd,91034,"86,760.00", Information Management Services,Large,Programme
UK Statistics Authority,Office for National Statistics,20-Jun-18,Rent Payable,People and Business Services,James Andrew RSW Ltd,91035,"202,860.00", Drummond Gate Rent,SME,Programme
UK Statistics Authority,Office for National Statistics,22-Jun-18,Non-IT Contractual Payments,Policy and Communication,Four Communications Group Limited,91385,"72,557.51", Information Management Services,SME,Programme
UK Statistics Authority,Office for National Statistics,25-Jun-18,Non-IT Contractual Payments,Policy and Communication,Four Communications Group Limited,91992,"107,632.27", Information Management Services,SME,Programme
UK Statistics Authority,Office for National Statistics,25-Jun-18,Electricity,People and Business Services,EDF Energy,30000927,"26,127.22", Electricity Charges Newport,Large,Programme
UK Statistics Authority,Office for National Statistics,26-Jun-18,Postage Stamps,Survey Processing,Royal Mail Direct,92010,"31,600.00", Survey Response,Large,Programme
UK Statistics Authority,Office for National Statistics,27-Jun-18,Contractors,Digital Services and Technology,Empiric Solutions Limited,92014,"15,624.00", Information Management Services,Large,Programme
UK Statistics Authority,Office for National Statistics,27-Jun-18,IT Contractual Services,Digital Services and Technology,Empiric Solutions Limited,92014,"28,080.00", Information Management Services,Large,Programme
UK Statistics Authority,Office for National Statistics,27-Jun-18,Travel and Subsistence,"Finance, Audit and Business Development",Redfern Travel,92019,"66,542.89", Travel and Accommodation Booking Service ,SME,Programme
UK Statistics Authority,Office for National Statistics,27-Jun-18,Contractors,Digital Services and Technology,LA International,92023,"17,942.40", Information Management Services,SME,Programme
UK Statistics Authority,Office for National Statistics,27-Jun-18,Contractors,Digital Services and Technology,LA International,92023,"30,788.21", Information Management Services,SME,Programme
UK Statistics Authority,Office for National Statistics,27-Jun-18,Contractors,"Methods, Data and Research",LA International,92023,"7,497.00", Information Management Services,SME,Programme
UK Statistics Authority,Office for National Statistics,27-Jun-18,Contractors,People and Business Services,LA International,92023,"14,804.16", Information Management Services,SME,Programme
UK Statistics Authority,Office for National Statistics,27-Jun-18,Contractors,Digital Services and Technology,Parity Resources Limited,92026,"16,540.74", Information Management Services,Large,Programme
UK Statistics Authority,Office for National Statistics,27-Jun-18,Contractors,Digital Services and Technology,Parity Resources Limited,92026,"8,330.40", Information Management Services,Large,Programme
UK Statistics Authority,Office for National Statistics,27-Jun-18,Contractors,National Accounts and Economic Statistics,Parity Resources Limited,92026,"7,016.76", Information Management Services,Large,Programme
UK Statistics Authority,Office for National Statistics,27-Jun-18,Short-Term Contract and Agency Staff,People and Business Services,Parity Resources Limited,92026,"2,573.30", Information Management Services,Large,Programme
UK Statistics Authority,Office for National Statistics,27-Jun-18,Short-Term Contract and Agency Staff,Policy and Communication,Parity Resources Limited,92026,"2,645.53", Information Management Services,Large,Programme
UK Statistics Authority,Office for National Statistics,28-Jun-18,ICT Outsourcing and Maintenance/Support,Digital Services and Technology,Comparex UK Ltd,92428,"90,992.36", Information Management Services,Large,Programme
UK Statistics Authority,Office for National Statistics,28-Jun-18,ICT Software,Policy and Communication,Comparex UK Ltd,92428,289, Information Management Services,Large,Programme
